bitfinex-derivatives/quotes_ETHF0:USTF0_20260214
["timestamp","ask_amount","ask_price","bid_price","bid_amount"]
[1771072820771,0.577229,2079.6,2078.7,0.56755179]
[1771072821274,0.00506643,2079.6,2078.7,0.56755179]
[1771072821667,0.00506643,2079.6,2078.9,0.56755179]
[1771072821871,0.57216257,2080.0,2078.9,0.57169239]
[1771072822273,40.8,2079.9,2078.9,0.57169239]
[1771072822479,41.37216257,2079.9,2078.9,0.57169239]
[1771072822673,0.57216257,2079.8,2078.9,0.57169239]
[1771072822874,0.00522796,2079.8,2078.9,0.57169239]
[1771072823074,0.57739053,2079.8,2078.9,0.57169239]
[1771072823978,0.57216257,2080.8,2079.1,0.56755179]
[1771072824372,40.8,2080.7,2079.2,0.56755179]
[1771072824676,0.57216257,2080.6,2079.2,0.56755179]
[1771072825081,0.57578655,2080.6,2079.2,0.56755179]
[1771072825378,0.57578655,2080.6,2079.4,0.56755179]
[1771072826278,0.57578655,2080.6,2079.6,0.56755179]
[1771072828278,0.57578655,2080.6,2079.1,9.8992]
[1771072828279,0.00362398,2080.6,2079.8,0.56755179]
[1771072828678,0.57216257,2081.1,2079.8,0.56755179]
[1771072828875,0.57216257,2081.1,2080.0,0.56755179]
[1771072829583,0.57555572,2081.1,2080.0,0.56755179]
[1771072830283,0.00339315,2081.1,2080.2,0.56755179]
[1771072830485,0.57555572,2081.1,2080.2,0.56755179]
[1771072834386,0.00339315,2081.1,2080.2,0.56755179]
[1771072835181,0.58792339,2081.1,2080.2,0.56755179]
[1771072837685,0.58792339,2081.1,2080.4,0.53625958]
[1771072837883,0.58792339,2081.1,2080.4,0.54241182]
[1771072839584,0.00339315,2081.1,2080.4,0.54241182]
[1771072840892,0.57969348,2081.1,2080.4,0.54241182]
[1771072841495,0.00339315,2081.1,2080.4,0.54241182]
[1771072845791,0.00339315,2081.1,2080.6,0.54561527]
[1771072845993,0.57630033,2081.5,2080.6,0.54561527]
[1771072846394,41.37630033,2081.5,2080.6,0.54561527]
[1771072846898,41.37991471,2081.5,2080.6,0.54561527]
[1771072847098,0.57630033,2081.4,2080.6,0.54561527]
[1771072850190,0.57991471,2081.5,2080.6,0.54561527]
[1771072850594,0.57991471,2081.5,2080.8,0.54561527]
[1771072853903,0.00361438,2081.5,2080.8,0.54561527]
[1771072855600,0.57630033,2081.7,2081.0,0.54561527]
[1771072855794,0.57630033,2082.1,2081.0,0.54561527]
[1771072855994,0.57630033,2081.9,2081.0,0.54561527]
[1771072856700,0.57630033,2081.9,2080.7,3.981]
[1771072856701,0.58037797,2081.9,2081.2,0.54561527]
[1771072856904,0.58037797,2081.9,2080.8,0.54561527]
[1771072857102,0.58037797,2081.9,2081.0,0.54561527]
[1771072857508,0.58037797,2081.9,2080.8,0.54561527]
[1771072858000,0.57630033,2081.7,2080.8,0.54561527]
[1771072860401,0.57630033,2081.7,2081.0,0.54561527]
[1771072860804,0.57630033,2081.7,2080.8,0.54561527]
[1771072861800,0.57630033,2081.7,2080.9,0.8285499]
[1771072866213,0.57630033,2081.7,2081.0,0.5881399]
[1771072867015,0.57630033,2081.7,2080.9,0.24041]
[1771072867516,0.57630033,2081.7,2080.9,0.8285499]
[1771072868420,0.57630033,2081.7,2080.9,0.5881399]
[1771072869414,0.55225691,2081.5,2080.9,0.5881399]
[1771072870419,3.92406039,2081.9,2080.9,0.5881399]
[1771072870614,0.55225691,2081.8,2080.9,0.5881399]
[1771072870819,0.55225691,2081.6,2080.9,0.5881399]
[1771072874222,0.55225691,2081.6,2080.0,5.91666]
[1771072874223,0.55225691,2080.4,2078.7,0.5881399]
[1771072874518,0.55225691,2079.8,2078.7,0.5881399]
[1771072874722,0.55225691,2079.6,2078.7,0.5881399]
[1771072874924,0.55225691,2079.4,2078.7,0.5881399]
[1771072875313,0.0033899,2079.4,2078.7,0.59256863]
[1771072876227,0.0033899,2079.4,2078.7,4.57356863]
[1771072876428,0.0033899,2079.4,2078.8,0.5881399]
[1771072879618,0.55564681,2079.4,2078.8,0.5881399]
[1771072880624,0.0033899,2079.4,2078.8,0.5881399]
[1771072883328,40.8,2079.6,2078.8,0.5881399]
[1771072883630,0.55225691,2079.5,2078.8,0.5881399]
[1771072884426,0.55225691,2079.3,2076.9,0.24087]
[1771072884631,0.55225691,2078.1,2077.0,0.5881399]
[1771072885233,2.21853143,2078.2,2077.1,0.5881399]
[1771072885234,41.35225691,2078.0,2077.1,0.5881399]
[1771072885628,41.35761571,2078.0,2077.1,0.59420653]
[1771072885829,40.8053588,2078.0,2077.1,0.59420653]
[1771072886029,41.35761571,2078.0,2077.1,0.59420653]
[1771072886226,0.55225691,2077.9,2077.2,4.5701399]
[1771072886427,0.55225691,2077.9,2077.1,0.00606663]
[1771072886630,0.55225691,2077.9,2075.6,5.92916]
[1771072886631,0.55225691,2077.5,2076.3,0.5881399]
[1771072887735,0.55225691,2077.5,2076.3,0.59271099]
[1771072887936,0.55225691,2077.5,2076.4,0.5881399]
[1771072888634,0.55225691,2076.7,2074.6,0.8368444]
[1771072888936,40.8053588,2078.0,2074.5,0.5881399]
[1771072888937,0.55225691,2075.9,2074.5,0.5881399]
[1771072889338,0.55225691,2075.9,2074.9,0.5881399]
[1771072889733,0.5569447,2075.9,2075.0,0.8368444]
[1771072889936,0.55225691,2075.8,2074.9,0.59394507]
[1771072890632,0.00468779,2075.9,2074.9,0.59394507]
[1771072890633,40.80468779,2075.9,2074.9,0.59394507]
[1771072890831,40.80468779,2075.9,2075.5,0.5881399]
[1771072891036,0.46578317,2076.1,2075.5,0.5881399]
[1771072891236,0.54782721,2076.5,2075.6,0.54194699]
[1771072891542,0.54782721,2076.3,2075.0,0.54194699]
[1771072891736,0.54782721,2076.3,2075.2,0.54194699]
[1771072891942,0.54782721,2076.3,2075.2,0.15210699]
[1771072892137,0.5523675,2076.3,2075.2,0.15210699]
[1771072892739,0.5523675,2076.3,2075.3,0.36085502]
[1771072893239,0.5523675,2076.3,2075.5,1.19769942]
[1771072893436,0.5523675,2076.3,2074.9,0.36666019]
[1771072893641,0.5523675,2076.3,2075.0,0.37230989]
[1771072893842,0.5523675,2076.3,2075.1,0.37230989]
[1771072894343,0.5523675,2076.3,2075.3,0.37230989]
[1771072895746,0.5523675,2076.3,2075.4,1.23092621]
[1771072896044,0.5523675,2076.3,2075.4,0.39408181]
[1771072896240,0.5523675,2076.3,2075.6,0.39408181]
[1771072896445,0.00454029,2076.3,2075.6,0.39408181]
[1771072896838,0.00454029,2076.3,2075.8,0.39408181]
[1771072897245,0.00454029,2076.3,2076.1,0.8368444]
[1771072897434,0.54782721,2076.6,2076.1,1.22638592]
[1771072897640,0.54782721,2077.2,2076.1,0.38954152]
[1771072898440,0.5537515,2077.2,2076.1,0.38954152]
[1771072898846,0.5537515,2077.2,2076.2,0.39184815]
[1771072899339,0.5537515,2077.2,2075.5,0.24103]
[1771072899542,0.5537515,2077.2,2075.7,0.39184815]
[1771072899746,0.5537515,2077.2,2075.8,0.43591666]
[1771072900243,0.5537515,2077.2,2075.9,0.43591666]
[1771072900443,0.5537515,2077.2,2075.9,4.41891666]
[1771072900647,0.5537515,2077.2,2075.9,0.43591666]
[1771072902645,0.5537515,2077.2,2076.0,0.4293857]
[1771072904148,0.5537515,2077.2,2076.2,0.42901177]
[1771072904551,0.5537515,2077.2,2076.3,0.42901177]
[1771072904749,0.5537515,2077.2,2076.0,0.42901177]
[1771072905746,0.5537515,2077.2,2075.9,4.22399]
[1771072905952,0.57056696,2077.0,2075.7,0.44786781]
[1771072906451,0.57056696,2077.0,2075.8,0.44786781]
[1771072906848,0.57056696,2077.0,2076.0,1.28471221]
[1771072907047,0.57056696,2077.0,2075.8,3.983]
[1771072907746,0.57056696,2077.0,2075.8,4.44022924]
[1771072907950,0.57056696,2077.0,2075.6,0.45722924]
[1771072908151,0.57056696,2077.0,2075.6,4.44022924]
[1771072908353,0.57056696,2077.0,2075.7,0.45722924]
[1771072909952,0.57056696,2076.8,2075.5,0.45676228]
[1771072911055,0.57056696,2076.8,2075.5,1.29360668]
[1771072911456,0.57056696,2076.8,2075.5,0.45676228]
[1771072911659,0.57056696,2076.8,2075.3,4.68081228]
[1771072912053,0.57056696,2076.8,2075.4,0.45681007]
[1771072912261,0.57056696,2076.6,2075.1,0.45681007]
[1771072912655,0.57056696,2076.4,2075.1,0.45681007]
[1771072912849,0.57056696,2076.2,2074.9,0.46261524]
[1771072913156,0.57056696,2076.0,2074.9,0.00580517]
[1771072913353,0.57056696,2075.8,2074.9,0.00580517]
[1771072913756,0.57056696,2075.8,2074.9,0.46261524]
[1771072913958,0.57056696,2075.8,2074.9,0.00580517]
[1771072914160,0.57056696,2075.6,2075.0,0.45297377]
[1771072914455,0.57535413,2075.6,2074.9,0.00580517]
[1771072914660,0.57056696,2075.4,2074.9,0.45877894]
[1771072914863,0.57535413,2075.6,2074.9,0.45877894]
[1771072915361,0.00478717,2075.6,2075.0,0.45297377]
[1771072915855,0.57535413,2075.6,2074.9,0.00580517]
[1771072916057,0.57056696,2075.9,2074.6,0.5802596]
[1771072916254,0.57056696,2075.9,2074.8,0.5802596]
[1771072916460,0.00478717,2075.8,2074.8,0.5802596]
[1771072917156,0.01056021,2075.8,2074.8,0.58547813]
[1771072917361,0.00577304,2075.8,2075.0,0.5802596]
[1771072917553,0.00577304,2075.8,2075.1,0.5802596]
[1771072917958,0.57056696,2076.3,2075.3,0.5802596]
[1771072918163,7.26074625,2076.2,2075.3,0.5802596]
[1771072918463,0.00478717,2076.2,2075.3,0.5802596]
[1771072918852,0.01069881,2076.2,2075.3,0.5802596]
[1771072919462,0.01069881,2076.2,2075.4,0.5802596]
[1771072920561,0.57056696,2076.6,2075.6,0.5802596]
[1771072920866,0.57056696,2076.8,2075.8,0.5802596]
[1771072921167,0.57651651,2077.2,2076.0,0.57700205]
[1771072921462,0.57651651,2077.0,2076.0,0.57700205]
[1771072921659,0.57651651,2076.8,2076.0,0.57700205]
[1771072922160,0.57651651,2076.9,2076.0,0.57700205]
[1771072923667,0.00578488,2077.0,2076.2,0.57700205]
[1771072924567,0.57651651,2077.4,2076.4,0.57700205]
[1771072925161,0.57651651,2077.2,2076.5,0.57700205]
[1771072925662,0.58020768,2077.2,2076.5,0.58213206]
[1771072926566,0.58020768,2077.2,2076.5,0.00513001]
[1771072928368,0.57651651,2077.0,2076.5,0.00513001]
[1771072929168,0.57651651,2077.0,2076.5,0.58213206]
[1771072929366,0.58020768,2077.2,2076.5,0.58213206]
[1771072929566,7.23343804,2077.1,2076.5,0.58213206]
[1771072929775,0.58020768,2077.2,2076.5,0.58213206]
[1771072932376,0.00369117,2077.2,2076.5,0.58213206]
[1771072932870,0.58020768,2077.2,2076.5,0.58213206]
[1771072937874,0.58020768,2077.2,2076.1,0.57700205]
[1771072938075,0.57651651,2077.0,2076.1,0.57700205]
[1771072938478,0.57651651,2077.0,2076.2,0.58213206]
[1771072938674,0.57651651,2077.0,2076.0,0.57700205]
[1771072938871,0.57651651,2077.0,2076.0,0.58253169]
[1771072939080,0.57651651,2077.0,2076.2,0.57700205]
[1771072939581,0.57651651,2077.0,2076.3,0.00513001]
[1771072939779,0.57651651,2077.0,2076.1,0.00513001]
[1771072939981,0.57651651,2077.0,2076.1,0.58213206]
[1771072945281,0.57651651,2077.0,2076.1,0.00513001]
[1771072945480,0.57651651,2077.0,2076.0,0.00552964]
[1771072945481,0.57651651,2076.8,2076.0,0.00552964]
[1771072945685,0.57651651,2076.6,2076.0,0.00552964]
[1771072945986,0.57651651,2076.4,2075.8,0.57700205]
[1771072946788,40.8,2076.5,2075.8,0.57700205]
[1771072946987,0.57651651,2076.4,2075.8,0.58142586]
[1771072947785,0.57651651,2076.4,2075.8,0.00442381]
[1771072947980,0.57651651,2076.4,2075.8,0.58142586]
[1771072951193,40.8,2076.5,2075.8,0.58142586]
[1771072951497,0.57659758,2076.6,2075.8,0.58142586]
[1771072952583,0.57659758,2076.9,2076.0,0.54780691]
[1771072956183,0.57659758,2076.9,2076.2,0.54780691]
[1771072956693,0.57659758,2077.1,2076.4,0.54780691]
[1771072957088,41.37659758,2077.1,2076.4,0.54780691]
[1771072958090,0.00369117,2077.2,2076.4,0.54780691]
[1771072960194,0.00369117,2077.2,2076.6,0.54780691]
[1771072960698,0.53772972,2077.7,2076.8,0.5398485]
[1771072961694,0.54320485,2077.7,2076.8,0.5398485]
[1771072964093,0.00547513,2077.7,2077.0,0.5398485]
[1771072964501,0.53772972,2077.9,2077.2,0.5398485]
[1771072964694,0.53772972,2078.4,2077.2,0.5398485]
[1771072964894,0.53772972,2078.2,2077.2,0.5398485]
[1771072965194,0.53772972,2078.2,2077.4,0.5398485]
[1771072965601,0.00610635,2078.2,2077.4,0.54381995]
[1771072966396,0.00610635,2078.2,2077.6,0.5398485]
[1771072967203,41.33772972,2078.4,2077.6,0.5398485]
[1771072967204,0.53772972,2078.6,2077.6,0.5398485]
[1771072967403,0.53772972,2079.0,2077.8,0.5398485]
[1771072967597,0.53772972,2078.8,2077.8,0.5398485]
[1771072967905,0.53772972,2078.8,2078.0,0.5398485]
[1771072968107,0.00350886,2078.8,2078.0,0.5398485]
[1771072968494,0.54123858,2078.8,2078.0,0.5398485]
[1771072970996,0.00350886,2078.8,2078.2,0.5398485]
[1771072971398,0.53772972,2079.1,2078.2,0.5398485]
[1771072971800,0.53772972,2079.3,2078.2,0.5398485]
[1771072972101,0.53772972,2079.3,2077.8,3.986]
[1771072972102,0.53772972,2079.9,2078.6,0.5398485]
[1771072972297,0.53772972,2079.9,2078.8,0.5398485]
[1771072972497,41.33772972,2079.8,2078.8,0.5398485]
[1771072972702,0.53772972,2079.7,2078.8,0.5398485]
[1771072975710,0.53772972,2079.7,2079.0,0.5398485]
[1771072975909,0.53772972,2079.7,2079.0,0.54381574]
[1771072978114,0.53772972,2079.7,2079.0,0.00396724]
[1771072978323,0.53772972,2079.7,2079.0,0.54381574]
[1771072980509,0.53772972,2079.4,2078.2,0.5398485]
[1771072980714,0.53772972,2079.4,2077.9,0.5398485]
[1771072981213,0.53772972,2079.4,2078.0,0.24074]
[1771072981413,0.56028039,2079.0,2078.1,0.55513003]
[1771072981613,0.56028039,2079.0,2078.0,0.24634437]
[1771072981817,0.56028039,2079.0,2078.0,0.8014744]
[1771072982414,0.56028039,2079.0,2078.0,0.5607344]
[1771072982819,0.56028039,2079.0,2078.0,0.00560437]
[1771072983016,0.56028039,2078.8,2078.0,0.00560437]
[1771072983418,0.56028039,2078.8,2077.8,0.55513003]
[1771072983811,0.56028039,2078.8,2077.5,0.55513003]
[1771072984422,0.56028039,2078.8,2077.5,0.56045393]
[1771072984618,0.56028039,2078.6,2077.5,0.0053239]
[1771072986518,19.68184756,2078.7,2077.3,0.55513003]
[1771072986519,0.56028039,2078.2,2077.3,0.55513003]
[1771072987421,0.56399446,2078.2,2077.3,0.8008247]
[1771072987626,0.56399446,2078.2,2077.4,0.55513003]
[1771072993434,0.56028039,2078.7,2077.6,0.55513003]
[1771072994122,0.56028039,2078.7,2077.8,0.55513003]
[1771072994325,0.56028039,2078.7,2078.0,0.55513003]
[1771072994531,0.56405376,2078.7,2078.1,0.24073]
[1771072994827,0.56405376,2078.7,2078.2,0.55513003]
[1771072995128,0.00377337,2078.7,2078.2,0.55513003]
[1771072995326,0.56405376,2078.7,2078.2,0.55513003]
[1771072995526,0.00377337,2078.7,2078.2,0.55513003]
[1771072995721,0.56028039,2079.0,2078.4,0.55513003]
[1771072996831,0.56600407,2079.0,2078.4,0.55513003]
[1771072997731,0.56600407,2079.0,2078.3,0.79584003]
[1771072997933,0.56600407,2079.0,2078.4,0.55513003]
[1771072998234,0.56600407,2079.0,2078.3,0.79584003]
[1771073001133,0.56600407,2079.0,2078.4,0.55513003]
[1771073002138,0.00572368,2079.0,2078.4,0.55513003]
[1771073002632,0.00572368,2079.0,2078.6,0.55513003]
[1771073003433,0.56028039,2079.3,2078.6,0.55513003]
[1771073003836,41.36028039,2079.5,2078.6,0.55513003]
[1771073004137,0.56028039,2079.4,2078.6,0.55513003]
[1771073004531,0.56415734,2079.4,2078.6,0.55513003]
[1771073005928,0.00387695,2079.4,2078.8,0.55513003]
[1771073006133,0.00387695,2079.4,2078.8,0.55854321]
[1771073006330,3.91998275,2079.8,2078.8,0.55854321]
[1771073006532,41.35662064,2079.7,2079.0,0.55513003]
[1771073006739,0.55662064,2079.7,2079.0,0.55513003]
[1771073007137,0.55662064,2079.5,2079.0,0.55513003]
[1771073007337,0.55662064,2079.5,2079.1,0.55513003]
[1771073008428,0.56098738,2079.5,2079.1,0.55860454]
[1771073010036,0.56098738,2079.5,2078.9,0.55513003]
[1771073011138,0.56098738,2079.5,2078.9,0.56060967]
[1771073012044,0.56098738,2079.5,2078.9,0.00547964]
[1771073013644,0.56098738,2079.5,2078.6,0.7837841]
[1771073014244,0.56098738,2079.5,2078.6,0.24067]
[1771073014544,0.56098738,2079.5,2078.7,0.5431141]
[1771073014743,0.56098738,2079.5,2078.7,0.54920887]
[1771073014944,0.56098738,2079.5,2078.7,0.00609477]
[1771073015540,0.54544764,2079.3,2078.7,0.00609477]
[1771073017145,0.54544764,2079.3,2078.7,0.54920887]
[1771073019340,0.54544764,2079.3,2078.9,0.5431141]
[1771073019546,0.54544764,2079.4,2078.9,0.5431141]
[1771073020348,0.57233877,2079.5,2078.9,0.5431141]
[1771073020750,0.00436674,2079.5,2079.1,0.55462358]
[1771073022942,0.57233877,2079.5,2079.1,0.55462358]
[1771073029354,0.57233877,2079.5,2079.0,0.79525358]
[1771073029555,0.57233877,2079.5,2079.1,0.55462358]
[1771073033554,0.56797203,2079.3,2077.1,0.55462358]
[1771073033857,0.56797203,2079.1,2077.6,0.55462358]
[1771073034059,0.56797203,2078.9,2077.6,0.55462358]
[1771073034250,0.56797203,2078.7,2077.6,0.55462358]
[1771073034657,0.56797203,2078.7,2077.6,0.5587987]
[1771073035460,0.56797203,2078.5,2077.6,0.5587987]
[1771073041169,0.58840886,2079.3,2078.0,0.55751517]
[1771073041375,0.58840886,2079.0,2078.0,0.55751517]
[1771073042068,0.58840886,2079.0,2078.1,0.24073]
[1771073042269,0.58840886,2079.0,2078.2,0.55751517]
[1771073042975,5.88937174,2079.7,2077.6,0.00417512]
[1771073042976,0.58840886,2079.2,2078.4,0.55751517]
[1771073043373,0.58840886,2079.1,2078.4,0.55751517]
[1771073044272,40.8,2079.4,2078.4,0.55751517]
[1771073044273,0.58840886,2079.3,2078.4,0.55751517]
[1771073044777,0.58840886,2079.3,2078.6,0.55751517]
[1771073045469,0.00436674,2079.5,2078.6,0.55751517]
[1771073045670,0.5927756,2079.5,2078.8,0.55751517]
[1771073045974,41.3927756,2079.5,2078.8,0.55751517]
[1771073046476,0.5927756,2079.5,2078.8,0.55751517]
[1771073046674,0.00436674,2079.5,2078.8,0.55751517]
[1771073047071,0.5927756,2079.5,2078.8,0.55751517]
[1771073052483,0.5927756,2079.5,2078.4,0.55751517]
[1771073055779,0.58840886,2079.3,2078.4,0.55751517]
[1771073058685,0.58840886,2079.3,2078.3,0.79822517]
[1771073059187,0.58840886,2079.3,2078.4,0.55751517]
[1771073059781,0.58840886,2079.1,2077.9,0.55751517]
[1771073060189,0.58840886,2078.9,2077.9,0.55751517]
[1771073065789,0.58840886,2078.7,2077.9,0.55751517]
[1771073066189,41.38840886,2078.8,2077.9,0.55751517]
[1771073066386,0.58840886,2078.8,2078.1,0.55751517]
[1771073073304,0.58840886,2078.8,2077.6,0.00417512]
[1771073073595,0.54200002,2078.6,2077.6,0.54731628]
[1771073073801,0.54200002,2078.4,2077.6,0.54731628]
[1771073083612,0.53832692,2078.2,2077.6,0.54731628]
[1771073083815,0.53832692,2078.1,2077.6,0.54731628]
[1771073091720,0.53832692,2078.4,2077.6,0.54731628]
[1771073092517,0.53832692,2078.4,2077.8,0.54663071]
[1771073094214,41.33832692,2078.5,2077.8,0.54663071]
[1771073094413,0.53832692,2078.5,2077.8,0.54663071]
[1771073095015,0.53832692,2078.5,2077.9,0.24075]
[1771073095226,0.53832692,2078.8,2078.0,0.54663071]
[1771073100323,41.33832692,2078.9,2078.0,0.54663071]
[1771073100527,0.53832692,2078.8,2078.2,0.54663071]
[1771073103523,0.58450616,2079.0,2078.2,0.54663071]
[1771073104722,42.24104929,2079.2,2078.4,0.53359626]
[1771073104927,0.58450616,2079.1,2078.4,0.53359626]
[1771073105716,5.6240488,2079.7,2078.4,0.53359626]
[1771073105717,0.58450616,2079.2,2078.5,0.53359626]
[1771073106323,1.44104929,2079.6,2078.5,0.53359626]
[1771073106622,41.38450616,2079.4,2078.5,0.53359626]
[1771073107133,0.58450616,2079.3,2078.7,0.53359626]
[1771073107727,0.58450616,2079.4,2078.7,0.53359626]
[1771073108024,0.5888729,2079.5,2078.7,0.53359626]
[1771073108624,0.58450616,2079.3,2078.7,0.53359626]
[1771073108817,0.58450616,2079.1,2078.7,0.53359626]
[1771073109019,0.58450616,2079.1,2078.6,0.77426626]
[1771073109426,0.58450616,2079.1,2078.7,0.53359626]
[1771073110619,1.44104929,2079.4,2078.7,0.53359626]
[1771073110819,0.58450616,2079.3,2078.7,0.53359626]
[1771073111525,0.58450616,2079.4,2078.7,0.53359626]
[1771073112223,0.00436674,2079.5,2078.9,0.53359626]
[1771073112424,0.58450616,2079.8,2079.1,0.53359626]
[1771073112627,10.186,2080.3,2079.1,0.53359626]
[1771073112628,0.58450616,2079.6,2079.1,0.53359626]
[1771073113528,0.59014311,2079.6,2079.1,0.53732857]
[1771073113827,0.00563695,2079.6,2079.1,0.53732857]
[1771073114029,0.59014311,2079.6,2079.1,0.53732857]
[1771073114427,0.58450616,2079.1,2078.0,0.53359626]
[1771073114730,0.58450616,2078.7,2078.0,0.53359626]
[1771073115425,0.58450616,2078.7,2078.0,0.53975248]
[1771073116132,0.58450616,2078.9,2078.0,0.53975248]
[1771073118432,40.8,2079.5,2078.2,0.53359626]
[1771073118631,0.58450616,2079.4,2078.2,0.53359626]
[1771073119733,0.58450616,2079.4,2078.2,4.52259626]
[1771073119927,0.58450616,2079.4,2078.3,0.53359626]
[1771073122226,40.8,2079.5,2077.6,0.53359626]
[1771073122227,0.58450616,2078.9,2077.6,0.53359626]
[1771073122432,0.58450616,2078.7,2077.6,0.53359626]
[1771073122729,0.58450616,2078.5,2077.6,0.53359626]
[1771073123434,0.58450616,2078.5,2077.6,0.53824818]
[1771073124835,0.58450616,2078.3,2077.6,0.53824818]
[1771073125233,40.8,2078.4,2077.8,0.53359626]
[1771073125429,0.58450616,2078.5,2077.8,0.53359626]
[1771073125824,41.38450616,2078.5,2077.8,0.53359626]
[1771073126225,0.58450616,2078.5,2077.8,0.53359626]
[1771073129033,0.58450616,2078.5,2077.6,0.00465192]
[1771073131137,0.58450616,2078.5,2077.6,0.53824818]
[1771073131530,0.58450616,2078.5,2077.2,0.58234084]
[1771073132738,0.58450616,2078.5,2077.2,0.58706205]
[1771073136548,2.22292422,2078.6,2076.2,0.58234084]
[1771073136549,0.55286413,2077.6,2076.2,0.58234084]
[1771073137142,0.55286413,2077.4,2076.6,0.58234084]
[1771073137344,40.8,2077.5,2076.6,0.58234084]
[1771073137544,41.3573891,2077.5,2076.6,0.58786723]
[1771073138339,0.55286413,2077.4,2076.6,0.58786723]
[1771073139337,40.80452497,2077.5,2076.6,0.58786723]
[1771073139535,41.3573891,2077.5,2076.6,0.58786723]
[1771073140147,0.55286413,2077.4,2076.6,0.58786723]
[1771073141551,40.80452497,2077.5,2076.6,0.58786723]
[1771073142145,0.00452497,2077.5,2076.8,0.58217239]
[1771073142652,0.00452497,2077.5,2077.0,0.58217239]
[1771073143353,0.57657793,2078.0,2077.0,0.58217239]
[1771073144448,0.58100265,2078.0,2077.2,0.58217239]
[1771073145549,0.00442472,2078.0,2077.4,0.58217239]
[1771073145752,0.00442472,2078.0,2077.6,0.58217239]
[1771073145952,0.57657793,2078.4,2077.6,0.58217239]
[1771073146955,0.58096483,2078.4,2077.6,0.58217239]
[1771073147956,0.0043869,2078.4,2077.6,0.58217239]
[1771073149959,0.0043869,2078.4,2077.8,0.58217239]
[1771073153953,0.57657793,2078.8,2077.8,0.58217239]
[1771073154152,40.8,2078.9,2078.0,0.58217239]
[1771073154650,40.8,2078.9,2078.2,0.58217239]
[1771073155251,40.8,2078.9,2078.2,0.58665126]
[1771073155252,0.58108204,2078.9,2078.2,0.58665126]
[1771073157059,0.57657793,2079.3,2078.4,0.58217239]
[1771073157455,0.57657793,2079.6,2078.8,0.58217239]
[1771073157955,0.00603687,2079.6,2079.0,0.58217239]
[1771073158156,0.57657793,2079.8,2079.0,0.58217239]
[1771073158359,41.37657793,2080.0,2079.0,0.58217239]
[1771073159354,41.38055048,2080.0,2079.0,0.58217239]
[1771073159549,41.38055048,2080.0,2079.2,0.58217239]
[1771073159955,0.58055048,2080.0,2079.2,0.58217239]
[1771073160262,0.00397255,2080.0,2079.2,0.58217239]
[1771073160660,0.57657793,2080.3,2079.4,0.58217239]
[1771073161153,0.57657793,2080.6,2079.4,0.58217239]
[1771073161861,0.58233348,2080.6,2079.4,0.58217239]
[1771073162160,0.58233348,2080.6,2079.6,0.55964007]
[1771073164358,0.58233348,2080.6,2079.8,0.55964007]
[1771073164553,0.58233348,2080.6,2079.8,0.56447289]
[1771073164959,0.00575555,2080.6,2079.8,0.56447289]
[1771073166755,0.00575555,2080.6,2080.0,0.55964007]
[1771073169958,0.55267994,2080.9,2080.1,0.55964007]
[1771073170862,0.55644877,2080.9,2080.1,0.55964007]
[1771073171859,0.55644877,2080.9,2079.9,0.80016007]
[1771073172064,0.55644877,2080.9,2079.8,0.56447289]
[1771073172264,0.55644877,2080.9,2079.8,0.00483282]
[1771073172659,40.8,2080.8,2079.8,0.00483282]
[1771073172962,0.55267994,2080.7,2079.8,0.00483282]
[1771073175464,0.55267994,2080.7,2079.8,0.56447289]
[1771073176672,0.55267994,2080.7,2079.8,0.00483282]
[1771073177170,0.55267994,2080.5,2079.3,0.55964007]
[1771073178071,0.55267994,2080.5,2079.3,0.56346263]
[1771073178267,0.55267994,2080.5,2079.5,0.55964007]
[1771073178476,3.65042521,2081.1,2080.1,5.91625]
[1771073178669,0.07777098,2082.1,2081.4,0.55964007]
[1771073178868,0.07777098,2082.1,2080.7,0.55964007]
[1771073179075,0.07777098,2081.9,2080.7,0.55964007]
[1771073179372,0.07777098,2081.6,2080.2,0.55964007]
[1771073179572,0.08129958,2081.6,2080.3,0.24048]
[1771073179766,0.13628856,2081.4,2080.4,0.55964007]
[1771073180370,0.13628856,2081.1,2080.0,3.99]
[1771073180563,0.13030201,2080.7,2079.5,0.55964007]
[1771073180768,0.13030201,2080.5,2078.8,0.55964007]
[1771073180965,0.13030201,2080.5,2079.0,0.55964007]
[1771073181371,0.13030201,2080.1,2079.0,0.55964007]
[1771073181574,0.13030201,2080.1,2079.0,0.56324504]
[1771073181769,0.11886827,2079.9,2079.0,0.56324504]
[1771073182376,0.11886827,2079.8,2079.0,0.56324504]
[1771073182772,0.12491586,2079.8,2079.0,0.56324504]
[1771073184179,0.12944064,2079.7,2079.0,0.56324504]
[1771073184679,40.92944064,2079.7,2079.0,0.56324504]
[1771073185281,0.12944064,2079.6,2079.0,0.56324504]
[1771073185877,5.90851589,2079.5,2079.0,0.56324504]
[1771073186079,0.13105855,2079.5,2079.0,0.55964007]
[1771073186277,5.90851589,2079.5,2078.6,0.55964007]
[1771073186478,0.55267994,2079.4,2078.6,0.55964007]
[1771073187183,0.55267994,2079.4,2078.6,0.56413412]
[1771073187880,0.55267994,2079.6,2078.6,0.56413412]
[1771073190885,0.55267994,2079.6,2078.8,0.55964007]
[1771073191185,0.55267994,2079.7,2078.8,0.55964007]
[1771073193489,0.55267994,2079.7,2079.0,0.56461397]
[1771073193886,0.00604759,2079.8,2079.2,0.56461397]
[1771073194178,0.00604759,2079.8,2079.1,0.24062]
[1771073194179,0.54380927,2080.1,2079.3,0.24059]
[1771073194381,0.54380927,2079.5,2078.8,0.56461397]
[1771073194579,0.54380927,2080.4,2079.0,0.56461397]
[1771073194780,0.54380927,2080.2,2079.0,0.56461397]
[1771073195182,0.54728903,2080.2,2079.0,0.56461397]
[1771073195386,0.54380927,2079.9,2079.0,0.56461397]
[1771073196284,0.54380927,2079.8,2079.0,0.56461397]
[1771073196588,0.54380927,2080.0,2079.2,0.56461397]
[1771073196988,0.54380927,2079.9,2079.2,0.56461397]
[1771073197586,0.54380927,2080.1,2079.4,0.56461397]
[1771073198088,0.54380927,2079.9,2079.4,0.56461397]
[1771073198586,0.54380927,2079.8,2079.4,0.56461397]
[1771073199584,6.32126661,2079.8,2079.4,0.56461397]
[1771073200687,5.77745734,2079.7,2079.3,0.79322942]
[1771073200997,6.35127054,2079.7,2079.3,0.79322942]
[1771073202089,6.35127054,2079.6,2079.3,0.55263942]
[1771073202292,0.5738132,2079.6,2078.8,0.55263942]
[1771073203088,0.5738132,2079.5,2078.8,0.55263942]
[1771073204198,0.5738132,2079.5,2079.0,0.55263942]
[1771073204696,6.35127054,2079.4,2079.0,0.55263942]
[1771073204899,0.5738132,2079.4,2079.0,0.55263942]
[1771073205099,0.5738132,2080.1,2079.0,0.55263942]
[1771073205495,0.5738132,2079.6,2079.0,0.55263942]
[1771073205994,0.5738132,2079.4,2079.0,0.55263942]
[1771073206599,5.77745734,2079.2,2079.0,0.55263942]
[1771073206798,5.77745734,2079.2,2078.9,0.27468382]
[1771073207903,5.77745734,2079.1,2078.8,0.00160136]
[1771073208105,0.5738132,2079.2,2078.7,3.99]
[1771073208403,6.35127054,2079.2,2078.7,3.99]
[1771073208611,5.77745734,2079.2,2078.7,3.99]
[1771073209007,6.36661744,2079.1,2078.7,3.99]